Workbook

Sheet Лист1
A1: Школа | C1: МБОУ "Сигнальненская СОШ" | F1: Утвердил: | G1: должность | H1: Директор
A2: Типовое примерное меню приготавливаемых блюд | G2: фамилия | H2: Е.Н. Шмакова
A3: Возрастная категория | E3: 12-18 лет | G3: дата | J3: 2026
H4: день | I4: месяц | J4: год
A5: Неделя | B5: День недели | C5: Прием пищи | D5: Раздел меню | E5: Блюда | F5: Вес блюда, г | G5: Белки | H5: Жиры | I5: Углеводы | J5: Калорийность | K5: № рецептуры
A6: 1 | B6: 1 | C6: Завтрак | D6: гор.блюдо | E6: КНЕЛИ ИЗ ГОВЯДИНЫ | F6: 100 | G6: 15.7 | H6: 13 | I6: 6.7 | J6: 206 | K6: 123
D7: гарнир | E7: МАКАРОННЫЕ ИЗДЕЛИЯ ОТВАРНЫЕ | F7: 200 | G7: 7.2 | H7: 6.2 | I7: 41.2 | J7: 250 | K7: 209
D8: гор.напиток | E8: ЧАЙ С САХАРОМ | F8: 200 | G8: 0.2 | H8: 0.1 | I8: 15 | J8: 60 | K8: 430
D9: хлеб | E9: ХЛЕБ РЖАНО-ПШЕНИЧНЫЙ ОБОГ. МИКРОНУТРИЕНТАМИ | F9: 25 | G9: 1.7 | H9: 0.2 | I9: 10.6 | J9: 51
E10: БАТОН | F10: 30 | G10: 2.3 | H10: 0.9 | I10: 15.4 | J10: 79 | K10: 111
E11: МАСЛО (ПОРЦИЯМИ) | F11: 10 | G11: 0.1 | H11: 8.3 | I11: 0.1 | J11: 75 | K11: 14
D13: итого | F13: 565 | G13: 27.2 | H13: 28.7 | I13: 89 | J13: 721
A14: =A6 -> 1 | B14: =B6 -> 1 | C14: Обед
D15: 1 блюдо | E15: РАССОЛЬНИК ЛЕНИНГРАДСКИЙ СО СМЕТАНОЙ | F15: 250/10 | G15: 2.4 | H15: 6.2 | I15: 16.1 | J15: 130 | K15: 91
D16: 2 блюдо | E16: ГУЛЯШ ИЗ ГОВЯДИНЫ МЯСНОЙ | F16: 100 | G16: 15.7 | H16: 15.9 | I16: 3.1 | J16: 218 | K16: 259
D17: гарнир | E17: КАША ГРЕЧНЕВАЯ РАССЫПЧАТАЯ | F17: 200 | G17: 4.8 | H17: 6.1 | I17: 50.1 | J17: 274 | K17: 323
D18: гор.напиток | E18: ЧАЙ С САХАРОМ И ЛИМОНОМ | F18: 185/15/7 | G18: 0.3 | H18: 0.1 | I18: 15.2 | J18: 62 | K18: 431
D19: хлеб | E19: ХЛЕБ РЖАНО-ПШЕНИЧНЫЙ ОБОГ. МИКРОНУТРИЕНТАМИ | F19: 60 | G19: 4 | H19: 0.5 | I19: 25.4 | J19: 122
D23: итого | F23: 827 | G23: 27.2 | H23: 28.8 | I23: 109.9 | J23: 806
A24: =A6 -> 1 | B24: =B6 -> 1 | C24: Итого за день: | F24: =F23+F13 -> 1392 | G24: =G23+G13 -> 54.4 | H24: =H23+H13 -> 57.5 | I24: =I23+I13 -> 198.9 | J24: =J23+J13 -> 1527
A25: 1 | B25: 2 | C25: Завтрак | D25: гор.блюдо | E25: ПЛОВ ИЗ СВИНИНЫ | F25: 100/200 | G25: 26.2 | H25: 58.2 | I25: 52.5 | J25: 839 | K25: 265
D26: гор.напиток | E26: ВИТОШКА НАПИТОК ВИТАМИНИЗИРОВАННЫЙ | F26: 200 | I26: 9.5 | J26: 40
D27: хлеб | E27: ХЛЕБ РЖАНО-ПШЕНИЧНЫЙ ОБОГ. МИКРОНУТРИЕНТАМИ | F27: 40 | G27: 2.6 | H27: 0.4 | I27: 17 | J27: 82
E28: БАТОН | F28: 30 | G28: 2.3 | H28: 0.9 | I28: 15.4 | J28: 79 | K28: 111
E29: СЫР (ПОРЦИЯМИ) | F29: 20 | G29: 4.6 | H29: 5.9 | J29: 73 | K29: 15
D31: итого | F31: 590 | G31: 35.7 | H31: 65.4 | I31: 94.4 | J31: 1113
C32: Обед | D32: закуска
A33: =A25 -> 1 | B33: =B25 -> 2 | D33: 1 блюдо | E33: БОРЩ С КАПУСТОЙ И КАРТОФЕЛЕМ С ГОВЯДИНОЙ СО СМЕТАНОЙ | F33: 250/10/10 | G33: 3.7 | H33: 7.7 | I33: 11.5 | J33: 134 | K33: 82
D34: 2 блюдо | E34: ШНИЦЕЛЬ РЫБНЫЙ НАТУРАЛЬНЫЙ | F34: 100 | G34: 21.4 | H34: 17.6 | I34: 9 | J34: 280 | K34: 242
D35: гарнир | E35: ПЮРЕ КАРТОФЕЛЬНОЕ | F35: 200 | G35: 4.2 | H35: 7 | I35: 28.5 | J35: 194 | K35: 335
D36: напиток | E36: КОМПОТ ИЗ СМЕСИ СУХОФРУКТОВ | F36: 200 | G36: 0.6 | H36: 0.1 | I36: 31.7 | J36: 131 | K36: 402
D37: хлеб | E37: ХЛЕБ РЖАНО-ПШЕНИЧНЫЙ ОБОГ. МИКРОНУТРИЕНТАМИ | F37: 60 | G37: 4 | H37: 0.5 | I37: 25.4 | J37: 122
D41: итого | F41: 830 | G41: 33.9 | H41: 32.9 | I41: 106.1 | J41: 861
A42: =A25 -> 1 | B42: =B25 -> 2 | C42: Итого за день: | F42: =F31+F41 -> 1420 | G42: =G31+G41 -> 69.6 | H42: =H31+H41 -> 98.3 | I42: =I31+I41 -> 200.5 | J42: =J31+J41 -> 1974
A43: 1 | B43: 3 | C43: Завтрак | D43: гор.блюдо | E43: БИФШТЕКС РУБЛЕННЫЙ ИЗ ГОВЯДИНЫ | F43: 100 | G43: 20.8 | H43: 26.9 | I43: 0.5 | J43: 326 | K43: 266
E44: ПЮРЕ КАРТОФЕЛЬНОЕ | F44: 200 | G44: 4.2 | H44: 7 | I44: 28.5 | J44: 194 | K44: 335
D45: гор.напиток | E45: НАПИТОК ИЗ ПЛОДОВ ШИПОВНИКА | F45: 200 | G45: 0.7 | H45: 0.3 | I45: 24.4 | J45: 103 | K45: 441
E46: БАТОН | F46: 30 | G46: 2.3 | H46: 0.9 | I46: 15.4 | J46: 79 | K46: 111
D47: хлеб | E47: ХЛЕБ РЖАНО-ПШЕНИЧНЫЙ ОБОГ. МИКРОНУТРИЕНТАМИ | F47: 30 | G47: 2 | H47: 0.3 | I47: 12.7 | J47: 61
D50: итого | F50: 560 | G50: 30 | H50: 35.4 | I50: 81.5 | J50: 763
A51: =A43 -> 1 | B51: =B43 -> 3 | C51: Обед
D52: 1 блюдо | E52: СУП С МАКАРОННЫМИ ИЗДЕЛИЯМИ И КАРТОФЕЛЕМ И КУРОЙ | F52: 250/25 | G52: 7 | H52: 7 | I52: 17.1 | J52: 159 | K52: 101
D53: 2 блюдо | E53: ТЕФТЕЛИ (2-Й ВАРИАНТ) | F53: 100/35 | G53: 9.4 | H53: 16 | I53: 10.5 | J53: 222 | K53: 284
D54: гарнир | E54: КАПУСТА СВЕЖАЯ ТУШЕНАЯ | F54: 200 | G54: 4.6 | H54: 8 | I54: 19.6 | J54: 171 | K54: 139
D55: напиток | E55: КОМПОТ ИЗ ИЗЮМА | F55: 200 | G55: 0.5 | H55: 0.1 | I55: 30.3 | J55: 124 | K55: 401
D56: хлеб | E56: ХЛЕБ РЖАНО-ПШЕНИЧНЫЙ ОБОГ. МИКРОНУТРИЕНТАМИ | F56: 70 | G56: 4.6 | H56: 0.6 | I56: 29.7 | J56: 143
D59: итого | F59: 880 | G59: 26.1 | H59: 31.7 | I59: 107.2 | J59: 819
A60: =A43 -> 1 | B60: =B43 -> 3 | C60: Итого за день: | F60: =F50+F59 -> 1440 | G60: =G50+G59 -> 56.1 | H60: =H50+H59 -> 67.1 | I60: =I50+I59 -> 188.7 | J60: =J50+J59 -> 1582
A61: 1 | B61: 4 | C61: Завтрак | D61: гор.блюдо | E61: КОТЛЕТЫ РУБЛЕННЫЕ ИЗ ФИЛЕ КУРЫ | F61: 100 | G61: 14.8 | H61: 25.4 | I61: 13.3 | J61: 341 | K61: 294
D62: гарнир | E62: КАША ГРЕЧНЕВАЯ РАССЫПЧАТАЯ | F62: 200 | G62: 4.8 | H62: 6.1 | I62: 50.1 | J62: 274 | K62: 323
D63: гор.напиток | E63: КОФЕЙНЫЙ НАПИТОК | F63: 200 | G63: 2.3 | H63: 1.6 | I63: 25.9 | J63: 126 | K63: 432
D64: хлеб | E64: ХЛЕБ РЖАНО-ПШЕНИЧНЫЙ ОБОГ. МИКРОНУТРИЕНТАМИ | F64: 25 | G64: 1.7 | H64: 0.2 | I64: 10.6 | J64: 51
E65: БАТОН | F65: 30 | G65: 2.3 | H65: 0.9 | I65: 15.4 | J65: 79 | K65: 111
E66: СЫР (ПОРЦИЯМИ) | F66: 20 | G66: 4.6 | H66: 5.9 | J66: 73 | K66: 15
D68: итого | F68: 575 | G68: 30.5 | H68: 40.1 | I68: 115.3 | J68: 944
A69: =A61 -> 1 | B69: =B61 -> 4 | C69: Обед | D69: 1 блюдо | E69: СУП КАРТОФЕЛЬНЫЙ С БОБОВЫМИ С КУРОЙ | F69: 250/25 | G69: 9.8 | H69: 8.9 | I69: 17.7 | J69: 190 | K69: 99
D70: 2 блюдо | E70: ГУЛЯШ ИЗ СВИНИНЫ МЯСНОЙ | F70: 100 | G70: 11.6 | H70: 30.7 | I70: 2.8 | J70: 334 | K70: 260
D71: гарнир | E71: РИС ОТВАРНОЙ | F71: 200 | G71: 4.9 | H71: 8.4 | I71: 43.6 | J71: 270 | K71: 325
D72: напиток | E72: ВИТОШКА НАПИТОК ВИТАМИНИЗИРОВАННЫЙ | F72: 200 | I72: 9.5 | J72: 40
D73: хлеб бел. | E73: ХЛЕБ РЖАНО-ПШЕНИЧНЫЙ ОБОГ. МИКРОНУТРИЕНТАМИ | F73: 70 | G73: 4.6 | H73: 0.6 | I73: 29.7 | J73: 143
D78: итого | F78: 845 | G78: 30.9 | H78: 48.6 | I78: 103.3 | J78: 977
A79: =A61 -> 1 | B79: =B61 -> 4 | C79: Итого за день: | F79: =F68+F78 -> 1420 | G79: =G68+G78 -> 61.4 | H79: =H68+H78 -> 88.7 | I79: =I68+I78 -> 218.6 | J79: =J68+J78 -> 1921
A80: 1 | B80: 5 | C80: Завтрак | D80: гор.блюдо | E80: ТЕФТЕЛИ (2-Й ВАРИАНТ) | F80: 100/35 | G80: 9.5 | H80: 16.8 | I80: 11.1 | J80: 231 | K80: 284
D81: гарнир | E81: КАПУСТА СВЕЖАЯ ТУШЕНАЯ | F81: 200 | G81: 4.6 | H81: 8 | I81: 19.6 | J81: 171 | K81: 139
D82: гор.напиток | E82: ЧАЙ С САХАРОМ И ЛИМОНОМ | F82: 185/15/7 | G82: 0.3 | H82: 0.1 | I82: 15.2 | J82: 62 | K82: 431
D83: хлеб | E83: ХЛЕБ РЖАНО-ПШЕНИЧНЫЙ ОБОГ. МИКРОНУТРИЕНТАМИ | F83: 25 | G83: 1.7 | H83: 0.2 | I83: 10.6 | J83: 51
E84: БАТОН | F84: 30 | G84: 2.3 | H84: 0.9 | I84: 15.4 | J84: 79 | K84: 111
E85: МАСЛО (ПОРЦИЯМИ) | F85: 10 | G85: 0.1 | H85: 8.3 | I85: 0.1 | J85: 75 | K85: 14
D87: итого | F87: 592 | G87: 18.5 | H87: 34.3 | I87: 72 | J87: 669
A88: =A80 -> 1 | B88: =B80 -> 5 | C88: Обед | D88: 1 блюдо | E88: СУП ИЗ ОВОЩЕЙ СО СМЕТАНОЙ | F88: 250/12 | G88: 2.1 | H88: 6 | I88: 11.3 | J88: 115 | K88: 95
D89: 2 блюдо | E89: ФРИКАДЕЛЬКИ ИЗ ГОВЯДИНЫ | F89: 100 | G89: 14.7 | H89: 18.8 | I89: 13.9 | J89: 282 | K89: 469К
D90: гарнир | E90: КАША ГРЕЧНЕВАЯ РАССЫПЧАТАЯ | F90: 200 | G90: 4.8 | H90: 6.1 | I90: 50.1 | J90: 274 | K90: 323
D91: напиток | E91: КОМПОТ ИЗ КУРАГИ | F91: 200 | G91: 0.8 | I91: 27.1 | J91: 112 | K91: 440
D92: хлеб бел. | E92: ХЛЕБ РЖАНО-ПШЕНИЧНЫЙ ОБОГ. МИКРОНУТРИЕНТАМИ | F92: 60 | G92: 4 | H92: 0.5 | I92: 25.4 | J92: 122
D97: итого | F97: 822 | G97: 26.4 | H97: 31.4 | I97: 127.8 | J97: 905
A98: =A80 -> 1 | B98: =B80 -> 5 | C98: Итого за день: | F98: =F87+F97 -> 1414 | G98: =G87+G97 -> 44.9 | H98: =H87+H97 -> 65.7 | I98: =I87+I97 -> 199.8 | J98: =J87+J97 -> 1574
A99: 2 | B99: 1 | C99: Завтрак | D99: гор.блюдо | E99: ФРИКАДЕЛЬКИ ИЗ ПТИЦЫ | F99: 100 | G99: 11.9 | H99: 11.1 | I99: 9.2 | J99: 184 | K99: 308
D100: гарнир | E100: КАША ГРЕЧНЕВАЯ РАССЫПЧАТАЯ | F100: 200 | G100: 4.8 | H100: 6.1 | I100: 50.1 | J100: 274 | K100: 323
D101: гор.напиток | E101: КОФЕЙНЫЙ НАПИТОК | F101: 200 | G101: 2.3 | H101: 1.6 | I101: 25.9 | J101: 126 | K101: 432
D102: хлеб | E102: ХЛЕБ РЖАНО-ПШЕНИЧНЫЙ ОБОГ. МИКРОНУТРИЕНТАМИ | F102: 25 | G102: 1.7 | H102: 0.2 | I102: 10.6 | J102: 51
E103: БАТОН | F103: 30 | G103: 2.3 | H103: 0.9 | I103: 15.4 | J103: 79 | K103: 111
E104: МАСЛО (ПОРЦИЯМИ) | F104: 10 | G104: 0.1 | H104: 8.3 | I104: 0.1 | J104: 75 | K104: 111
D106: итого | F106: 565 | G106: 23.1 | H106: 28.2 | I106: 111.3 | J106: 789
A107: =A99 -> 2 | B107: =B99 -> 1 | C107: Обед | D107: 1 блюдо | E107: СУП-ПЮРЕ ИЗ ГОРОХА | F107: 250 | G107: 4.7 | H107: 5.5 | I107: 14.7 | J107: 128 | K107: 170
D108: 2 блюдо | E108: ГУЛЯШ ИЗ ПТИЦЫ | F108: 100 | G108: 14.6 | H108: 19 | I108: 3.1 | J108: 242 | K108: 260
D109: гарнир | E109: МАКАРОННЫЕ ИЗДЕЛИЯ ОТВАРНЫЕ | F109: 200 | G109: 7.2 | H109: 6.2 | I109: 41.2 | J109: 250 | K109: 209
D110: гор.напиток | E110: ЧАЙ С САХАРОМ | F110: 185/15 | G110: 0.2 | H110: 0.1 | I110: 15 | J110: 60 | K110: 430
D111: хлеб | E111: ХЛЕБ РЖАНО-ПШЕНИЧНЫЙ ОБОГ. МИКРОНУТРИЕНТАМИ | F111: 70 | G111: 4.6 | H111: 0.6 | I111: 29.7 | J111: 143
D116: итого | F116: 820 | G116: 31.3 | H116: 31.4 | I116: 103.7 | J116: 823
A117: =A99 -> 2 | B117: =B99 -> 1 | C117: Итого за день: | F117: =F106+F116 -> 1385 | G117: =G106+G116 -> 54.4 | H117: =H106+H116 -> 59.6 | I117: =I106+I116 -> 215 | J117: =J106+J116 -> 1612
A118: 2 | B118: 2 | C118: Завтрак | D118: гор.блюдо | E118: ЖАРКОЕ ИЗ СВИНИНЫ | F118: 100/200 | G118: 24.6 | H118: 28.3 | I118: 32.3 | J118: 481
D119: напиток | E119: КОМПОТ ИЗ КУРАГИ | F119: 200 | G119: 0.8 | I119: 27.1 | J119: 112 | K119: 440
D120: хлеб | E120: ХЛЕБ РЖАНО-ПШЕНИЧНЫЙ ОБОГ. МИКРОНУТРИЕНТАМИ | F120: 25 | G120: 1.7 | H120: 0.2 | I120: 10.6 | J120: 51
E121: БАТОН | F121: 30 | G121: 2.3 | H121: 0.9 | I121: 15.4 | J121: 79 | K121: 111
E122: СЫР (ПОРЦИЯМИ) | F122: 20 | G122: 4.6 | H122: 5.9 | J122: 73 | K122: 15
D125: итого | F125: 575 | G125: 34 | H125: 35.3 | I125: 85.4 | J125: 796
A126: =A118 -> 2 | B126: =B118 -> 2 | C126: Обед | D126: 1 блюдо | E126: ЩИ ИЗ СВЕЖЕЙ КАПУСТЫ С КАРТОФЕЛЕМ СО СМЕТАНОЙ | F126: 250/12 | G126: 2 | H126: 5.9 | I126: 9 | J126: 104 | K126: 84
D127: 2 блюдо | E127: ПЛОВ ИЗ ПТИЦЫ | F127: 100/200 | G127: 31.2 | H127: 42.3 | I127: 53.4 | J127: 719 | K127: 311
D128: напиток | E128: НАПИТОК ЛИМОННЫЙ | F128: 200 | G128: 0.2 | I128: 25.7 | J128: 105 | K128: 436
D129: хлеб | E129: ХЛЕБ РЖАНО-ПШЕНИЧНЫЙ ОБОГ. МИКРОНУТРИЕНТАМИ | F129: 70 | G129: 4.6 | H129: 0.6 | I129: 29.7 | J129: 143
D134: итого | F134: 832 | G134: 38 | H134: 48.8 | I134: 117.8 | J134: 1071
A135: =A118 -> 2 | B135: =B118 -> 2 | C135: Итого за день: | F135: =F125+F134 -> 1407 | G135: =G125+G134 -> 72 | H135: =H125+H134 -> 84.1 | I135: =I125+I134 -> 203.2 | J135: =J125+J134 -> 1867
A136: 2 | B136: 3 | C136: Завтрак | D136: гор.блюдо | E136: ШНИЦЕЛЬ РЫБНЫЙ НАТУРАЛЬНЫЙ | F136: 100 | G136: 21.4 | H136: 17.6 | I136: 9 | J136: 280 | K136: 242
D137: гарнир | E137: РИС ОТВАРНОЙ | F137: 200 | G137: 4.9 | H137: 8.4 | I137: 43.6 | J137: 270 | K137: 325
D138: гор.напиток | E138: ЧАЙ С САХАРОМ И ЛИМОНОМ | F138: 185/15/7 | G138: 0.3 | H138: 0.1 | I138: 15.2 | J138: 62 | K138: 431
D139: хлеб | E139: ХЛЕБ РЖАНО-ПШЕНИЧНЫЙ ОБОГ. МИКРОНУТРИЕНТАМИ | F139: 25 | G139: 1.7 | H139: 0.2 | I139: 10.6 | J139: 51 | K139: 111
E140: БАТОН | F140: 30 | G140: 2.3 | H140: 0.9 | I140: 15.4 | J140: 79
E141: МАСЛО (ПОРЦИЯМИ) | F141: 10 | G141: 0.1 | H141: 8.3 | I141: 0.1 | J141: 75 | K141: 14
D143: итого | F143: 572 | G143: 30.7 | H143: 35.5 | I143: 93.9 | J143: 817
A144: =A136 -> 2 | B144: =B136 -> 3 | C144: Обед | D144: 1 блюдо | E144: СУП С РЫБНЫМИ КОНСЕРВАМИ | F144: 250 | G144: 9.2 | H144: 3.4 | I144: 16.5 | J144: 133 | K144: 87
D145: 2 блюдо | E145: ТЕФТЕЛИ (2-Й ВАРИАНТ) | F145: 100/35 | G145: 9.5 | H145: 16.8 | I145: 11.1 | J145: 231 | K145: 284
D146: гарнир | E146: КАПУСТА СВЕЖАЯ ТУШЕНАЯ | F146: 200 | G146: 4.6 | H146: 8 | I146: 19.6 | J146: 171 | K146: 139
D147: гор.напиток | E147: ЧАЙ С САХАРОМ | F147: 185/15 | G147: 0.2 | H147: 0.1 | I147: 15 | J147: 60 | K147: 430
D148: хлеб | E148: ХЛЕБ РЖАНО-ПШЕНИЧНЫЙ ОБОГ. МИКРОНУТРИЕНТАМИ | F148: 70 | G148: 4.6 | H148: 0.6 | I148: 29.7 | J148: 143
D151: итого | F151: 855 | G151: 28.1 | H151: 28.9 | I151: 91.9 | J151: 738
A152: =A136 -> 2 | B152: =B136 -> 3 | C152: Итого за день: | F152: =F143+F151 -> 1427 | G152: =G143+G151 -> 58.8 | H152: =H143+H151 -> 64.4 | I152: =I143+I151 -> 185.8 | J152: =J143+J151 -> 1555
A153: 2 | B153: 4 | C153: Завтрак | D153: гор.блюдо | E153: ФРИКАДЕЛЬКИ ИЗ ГОВЯДИНЫ | F153: 100 | G153: 14.7 | H153: 18.8 | I153: 13.9 | J153: 282 | K153: 469К
D154: гарнир | E154: ПЮРЕ КАРТОФЕЛЬНОЕ | F154: 200 | G154: 4.2 | H154: 7 | I154: 28.5 | J154: 194 | K154: 335
D155: напиток | E155: КОМПОТ ИЗ ИЗЮМА | F155: 200 | G155: 0.5 | H155: 0.1 | I155: 30.3 | J155: 124 | K155: 401
D156: хлеб | E156: ХЛЕБ РЖАНО-ПШЕНИЧНЫЙ ОБОГ. МИКРОНУТРИЕНТАМИ | F156: 30 | G156: 2 | H156: 0.3 | I156: 12.7 | J156: 61
E157: БАТОН | F157: 30 | G157: 2.3 | H157: 0.9 | I157: 15.4 | J157: 79 | K157: 111
D160: итого | F160: 560 | G160: 23.7 | H160: 27.1 | I160: 100.8 | J160: 740
A161: =A153 -> 2 | B161: =B153 -> 4 | C161: Обед | D161: 1 блюдо | E161: СУП С МАКАРОННЫМИ ИЗДЕЛИЯМИ С КУРОЙ | F161: 250/25 | G161: 6.8 | H161: 8.8 | I161: 15.4 | J161: 168 | K161: 105
D162: 2 блюдо | E162: ЖАРКОЕ ИЗ СВИНИНЫ | F162: 100/200 | G162: 24.6 | H162: 28.3 | I162: 32.3 | J162: 481 | K162: 335
D163: напиток | E163: НАПИТОК ИЗ ПЛОДОВ ШИПОВНИКА | F163: 200 | G163: 0.7 | H163: 0.3 | I163: 24.4 | J163: 103 | K163: 441
D164: хлеб | E164: ХЛЕБ РЖАНО-ПШЕНИЧНЫЙ ОБОГ. МИКРОНУТРИЕНТАМИ | F164: 70 | G164: 4.6 | H164: 0.6 | I164: 29.7 | J164: 143
D167: итого | F167: 845 | G167: 36.7 | H167: 38 | I167: 101.8 | J167: 895
A168: =A153 -> 2 | B168: =B153 -> 4 | C168: Итого за день: | F168: =F160+F167 -> 1405 | G168: =G160+G167 -> 60.4 | H168: =H160+H167 -> 65.1 | I168: =I160+I167 -> 202.6 | J168: =J160+J167 -> 1635
A169: 2 | B169: 5 | C169: Завтрак | D169: гор.блюдо | E169: ГУЛЯШ ИЗ ПТИЦЫ | F169: 100 | G169: 14.6 | H169: 19 | I169: 3.1 | J169: 242 | K169: 260
D170: гарнир | E170: МАКАРОННЫЕ ИЗДЕЛИЯ ОТВАРНЫЕ | F170: 200 | G170: 7.2 | H170: 6.2 | I170: 41.2 | J170: 250 | K170: 209
D171: гор.напиток | E171: КАКАО С МОЛОКОМ | F171: 200 | G171: 3.8 | H171: 3.7 | I171: 24.4 | J171: 147 | K171: 433
D172: хлеб | E172: ХЛЕБ РЖАНО-ПШЕНИЧНЫЙ ОБОГ. МИКРОНУТРИЕНТАМИ | F172: 30 | G172: 2 | H172: 0.3 | I172: 12.7 | J172: 61
E173: БАТОН | F173: 30 | G173: 2.3 | H173: 0.9 | I173: 15.4 | J173: 79 | K173: 111
E174: МАСЛО (ПОРЦИЯМИ) | F174: 10 | G174: 0.1 | H174: 8.3 | I174: 0.1 | J174: 75 | K174: 14
D176: итого | F176: 570 | G176: 30 | H176: 38.4 | I176: 96.9 | J176: 854
A177: =A169 -> 2 | B177: =B169 -> 5 | C177: Обед | D177: 1 блюдо | E177: БОРЩ С КАПУСТОЙ И КАРТОФЕЛЕМ С ГОВЯДИНОЙ СО СМЕТАНОЙ | F177: 250/10/10 | G177: 3.8 | H177: 8.1 | I177: 12.4 | J177: 142 | K177: 94
D178: 2 блюдо | E178: БИФШТЕКС РУБЛЕННЫЙ ИЗ ГОВЯДИНЫ | F178: 100 | G178: 20.8 | H178: 26.9 | I178: 0.5 | J178: 326 | K178: 294
D179: гарнир | E179: ПЮРЕ КАРТОФЕЛЬНОЕ | F179: 200 | G179: 4.2 | H179: 7 | I179: 28.5 | J179: 194
D180: напиток | E180: ВИТОШКА НАПИТОК ВИТАМИНИЗИРОВАННЫЙ | F180: 200 | I180: 9.5 | J180: 40
D181: хлеб бел. | E181: ХЛЕБ РЖАНО-ПШЕНИЧНЫЙ ОБОГ. МИКРОНУТРИЕНТАМИ | F181: 70 | G181: 4.6 | H181: 0.6 | I181: 29.7 | J181: 143
D184: итого | F184: 786 | G184: 33.4 | H184: 42.6 | I184: 80.6 | J184: 845
A185: =A169 -> 2 | B185: =B169 -> 5 | C185: Итого за день: | F185: =F176+F184 -> 1356 | G185: =G176+G184 -> 63.4 | H185: =H176+H184 -> 81 | I185: =I176+I184 -> 177.5 | J185: =J176+J184 -> 1699
C186: Среднее значение за период: | F186: =(F24+F42+F60+F79+F98+F117+F135+F152+F168+F185)/(IF(F24=0, 0, 1)+IF(F42=0, 0, 1)+IF(F60=0, 0, 1)+IF(F79=0, 0, 1)+IF(F98=0, 0, 1)+IF(F117=0, 0, 1)+IF(F135=0, 0, 1)+IF(F152=0, 0, 1)+IF(F168=0, 0, 1)+IF(F185=0, 0, 1)) -> 1406.6 | G186: =(G24+G42+G60+G79+G98+G117+G135+G152+G168+G185)/(IF(G24=0, 0, 1)+IF(G42=0, 0, 1)+IF(G60=0, 0, 1)+IF(G79=0, 0, 1)+IF(G98=0, 0, 1)+IF(G117=0, 0, 1)+IF(G135=0, 0, 1)+IF(G152=0, 0, 1)+IF(G168=0, 0, 1)+IF(G185=0, 0, 1)) -> 59.54 | H186: =(H24+H42+H60+H79+H98+H117+H135+H152+H168+H185)/(IF(H24=0, 0, 1)+IF(H42=0, 0, 1)+IF(H60=0, 0, 1)+IF(H79=0, 0, 1)+IF(H98=0, 0, 1)+IF(H117=0, 0, 1)+IF(H135=0, 0, 1)+IF(H152=0, 0, 1)+IF(H168=0, 0, 1)+IF(H185=0, 0, 1)) -> 73.15 | I186: =(I24+I42+I60+I79+I98+I117+I135+I152+I168+I185)/(IF(I24=0, 0, 1)+IF(I42=0, 0, 1)+IF(I60=0, 0, 1)+IF(I79=0, 0, 1)+IF(I98=0, 0, 1)+IF(I117=0, 0, 1)+IF(I135=0, 0, 1)+IF(I152=0, 0, 1)+IF(I168=0, 0, 1)+IF(I185=0, 0, 1)) -> 199.06 | J186: =(J24+J42+J60+J79+J98+J117+J135+J152+J168+J185)/(IF(J24=0, 0, 1)+IF(J42=0, 0, 1)+IF(J60=0, 0, 1)+IF(J79=0, 0, 1)+IF(J98=0, 0, 1)+IF(J117=0, 0, 1)+IF(J135=0, 0, 1)+IF(J152=0, 0, 1)+IF(J168=0, 0, 1)+IF(J185=0, 0, 1)) -> 1694.6
